[Event "Italian Youth U20 Championship 2023"]
[Site "Brescia"]
[Date "2023.12.07"]
[Round "5.1"]
[White "Perossa, Nicolas"]
[Black "Pozzari, Simone"]
[Result "0-1"]
[ECO "C18"]
[WhiteElo "2330"]
[BlackElo "2186"]
[Annotator "RC"]
[PlyCount "168"]
[EventDate "2023.12.03"]
[EventType "tourn"]
[EventCountry "ITA"]
[SourceTitle "playchess.com"]
[Source "ChessBase"]
[SourceQuality "1"]
[TimeControl "40/6000+30:20/3000+30:900+30"]

1. e4 {[%emt 0:01:37]} e6 {[%emt 0:03:02]} 2. d4 {[%emt 0:00:29]} d5 {[%emt 0:00:12]} 3. Nc3 {[%emt 0:00:07]} Bb4 {[%emt 0:00:11]} 4. e5 {[%emt 0:00:06]} c5 {[%emt 0:00:02]} 5. a3 {[%emt 0:00:09]} Bxc3+ {[%emt 0:00:04]} 6. bxc3 {[%emt 0:00:06]} Nc6 {[%emt 0:00:02]} 7. Qg4 {[%emt 0:00:11]} g6 {[%emt 0:00:07]} 8. Bd2 {[%emt 0:06:12]} c4 {[%emt 0:02:15]} 9. a4 {[%emt 0:01:12]} Qa5 {[%emt 0:01:54]} 10. Nh3 {[%emt 0:32:28]} Bd7 {[%emt 0:04:35]} 11. Qh4 {[%emt 0:09:02]} h6 {[%emt 0:05:21]} 12. g4 {[%emt 0:20:53]} Rh7 {[%emt 0:05:56]} 13. Be2 {[%emt 0:06:36]} Nce7 {[%emt 0:03:08]} 14. O-O {[%emt 0:18:29]} Bxa4 {[%emt 0:03:59]} 15. Ra2 {[%emt 0:02:59]} b5 {[%emt 0:07:18]} 16. Qg3 {[%emt 0:05:08]} Nc6 {[%emt 0:09:12]} 17. Bc1 {[%emt 0:00:37]} Kd7 {[%emt 0:08:02]} 18. Ba3 {[%emt 0:01:16]} Bxc2 {[%emt 0:02:45]} 19. Raa1 {[%emt 0:01:03]} Qb6 {[%emt 0:02:01]} 20. Bc5 {[%emt 0:00:09]} Qb7 {[%emt 0:00:41]} 21. Rfc1 {[%emt 0:01:06]} Bb3 {[%emt 0:00:39]} 22. Qh4 {[%emt 0:00:56]} Ke8 {[%emt 0:13:51]} 23. f4 {[%emt 0:00:20]} Nce7 {[%emt 0:00:58]} 24. Ra5 {[%emt 0:00:37]} a6 {[%emt 0:00:25]} 25. Bd1 {[%emt 0:00:40]} Qc7 {[%emt 0:02:21]} 26. Raa1 {[%emt 0:00:29]} Bxd1 {[%emt 0:00:07]} 27. Rxd1 {[%emt 0:00:04]} Qd8 {[%emt 0:01:09]} 28. Rdb1 {[%emt 0:00:17]} Qd7 {[%emt 0:07:08]} 29. Kh1 {[%emt 0:00:59]} Nc6 {[%emt 0:04:44]} 30. Rf1 {[%emt 0:00:25]} Rg7 {[%emt 0:04:18]} 31. f5 {[%emt 0:00:36]} gxf5 {[%emt 0:00:34]} 32. gxf5 {[%emt 0:00:01]} exf5 {[%emt 0:00:12]} 33. Rg1 {[%emt 0:01:08]} Rg4 {[%emt 0:01:14]} 34. Nf2 {[%emt 0:00:24]} Rg6 {[%emt 0:00:20]} 35. e6 {[%emt 0:00:24]} Qxe6 {[%emt 0:00:29]} 36. Rge1 {[%emt 0:00:23]} Nf6 {[%emt 0:14:45]} 37. Rxe6+ {[%emt 0:00:13]} fxe6 {[%emt 0:00:01]} 38. Qf4 {[%emt 0:00:32]} Nd7 {[%emt 0:04:38]} 39. Qd6 {[%emt 0:00:36]} Rc8 {[%emt 0:00:01]} 40. Rxa6 {[%emt 0:00:26]} Nxc5 {[%emt 0:00:04]} 41. Qxc5 {[%emt 0:50:57]} Ne7 {[%emt 0:50:11]} 42. Qxb5+ {[%emt 0:00:05]} Kf7 {[%emt 0:00:03]} 43. Ra1 {[%emt 0:00:00]} Rcg8 {[%emt 0:00:00]} 44. Qd7 {[%emt 0:00:00]} Rg2 {[%emt 0:00:00]} 45. Re1 {[%emt 0:00:00]} R8g6 {[%emt 0:00:00]} 46. Nh3 {[%emt 0:00:00]} R2g4 {[%emt 0:00:00]} 47. Qd6 {[%emt 0:00:00]} Re4 {[%emt 0:00:00]} 48. Ra1 {[%emt 0:00:00]} e5 {[%emt 0:00:00]} 49. Qc5 {[%emt 0:00:00]} Rc6 {[%emt 0:00:00]} 50. Qb4 {[%emt 0:00:00]} exd4 {[%emt 0:00:00]} 51. Nf2 {[%emt 0:00:00]} Re2 {[%emt 0:00:00]} 52. cxd4 {[%emt 0:00:00]} c3 {[%emt 0:00:00]} 53. Nd3 {[%emt 0:00:00]} c2 {[%emt 0:00:00]} 54. Nc5 {[%emt 0:04:10]} Rg6 {[%emt 0:00:00]} 55. Qc3 {[%emt 0:00:12]} Rb6 {[%emt 0:00:00]} 56. Nb3 {[%emt 0:01:28]} Rc6 {[%emt 0:00:00]} 57. Qh3 {[%emt 0:02:00]} c1=Q+ {[%emt 0:00:00]} 58. Rxc1 {[%emt 0:00:03]} Rxc1+ {[%emt 0:00:00]} 59. Nxc1 {[%emt 0:00:03]} Re1+ {[%emt 0:00:00]} 60. Kg2 {[%emt 0:00:03]} Rxc1 {[%emt 0:00:00]} 61. Qxh6 {[%emt 0:15:12]} Rc2+ {[%emt 0:07:55]} 62. Kf3 {[%emt 0:00:34]} Rc3+ {[%emt 0:04:49]} 63. Kf4 {[%emt 0:00:00]} Rc6 {[%emt 0:00:00]} 64. Qh7+ {[%emt 0:00:00]} Kf6 {[%emt 0:00:00]} 65. Qh4+ {[%emt 0:00:00]} Kf7 {[%emt 0:00:00]} 66. Qh5+ {[%emt 0:00:00]} Kf6 {[%emt 0:00:00]} 67. Qg5+ {[%emt 0:00:00]} Kf7 {[%emt 0:00:00]} 68. h4 {[%emt 0:00:00]} Rg6 {[%emt 0:00:00]} 69. Qh5 {[%emt 0:00:00]} Kg7 {[%emt 0:00:00]} 70. Ke5 {[%emt 0:00:07]} Kf7 {[%emt 0:02:28]} 71. Qh7+ {[%emt 0:00:40]} Rg7 {[%emt 0:00:13]} 72. Qh6 {[%emt 0:01:10]} Rg6 {[%emt 0:00:05]} 73. Qh5 {[%emt 0:02:26]} Kg7 {[%emt 0:00:42]} 74. Qd1 {[%emt 0:01:03]} Kf7 {[%emt 0:00:18]} 75. Qh5 {[%emt 0:00:03]} Kg7 {[%emt 0:00:06]} 76. Qd1 {[%emt 0:00:03]} Kf7 {[%emt 0:00:06]} 77. Qa4 {[%emt 0:01:14]} Rh6 {[%emt 0:04:51]} 78. Qd7 {[%emt 0:00:40]} Kf8 {[%emt 0:00:47]} 79. h5 {[%emt 0:01:26]} Kf7 {[%emt 0:01:05]} 80. Qb7 {[%emt 0:01:06]} Rxh5 {[%emt 0:03:04]} 81. Kd6 {[%emt 0:00:12]} Rh6+ {[%emt 0:00:17]} 82. Kd7 {[%emt 0:00:32]} Re6 {[%emt 0:00:34]} 83. Qa8 {[%emt 0:00:46]} Ng8 {[%emt 0:00:42]} 84. Qxd5 {[%emt 0:00:06]} Nf6+ {[%emt 0:00:10]} 0-1

[Event "Italian Youth U20 Championship 2023"]
[Site "Brescia"]
[Date "2023.12.07"]
[Round "5.2"]
[White "Cappelletto, Joshuaede"]
[Black "Bettalli, Francesco"]
[Result "1-0"]
[ECO "B30"]
[WhiteElo "2329"]
[BlackElo "2274"]
[Annotator "RC"]
[PlyCount "97"]
[EventDate "2023.12.03"]
[EventType "tourn"]
[EventCountry "ITA"]
[SourceTitle "playchess.com"]
[Source "ChessBase"]
[SourceQuality "1"]
[TimeControl "40/6000+30:20/3000+30:900+30"]

1. e4 {[%emt 0:01:07]} c5 {[%emt 0:02:33]} 2. Nf3 {[%emt 0:00:07]} Nc6 {[%emt 0:00:06]} 3. Nc3 {[%emt 0:00:04]} e5 {[%emt 0:04:36]} 4. Bc4 {[%emt 0:00:18]} d6 {[%emt 0:00:13]} 5. d3 {[%emt 0:00:14]} Be7 {[%emt 0:00:07]} 6. O-O {[%emt 0:01:49]} Nf6 {[%emt 0:03:43]} 7. Ng5 {[%emt 0:03:31]} O-O {[%emt 0:01:34]} 8. f4 {[%emt 0:00:35]} h6 {[%emt 0:08:11]} 9. Nf3 {[%emt 0:01:42]} exf4 {[%emt 0:00:10]} 10. Bxf4 {[%emt 0:00:48]} Be6 {[%emt 0:00:27]} 11. Nd5 {[%emt 0:09:05]} Bxd5 {[%emt 0:03:30]} 12. exd5 {[%emt 0:13:26]} Nb4 {[%emt 0:04:13]} 13. Qd2 {[%emt 0:02:50]} Nbxd5 {[%emt 0:13:21]} 14. Bxh6 {[%emt 0:16:06]} gxh6 {[%emt 0:01:33]} 15. Qxh6 {[%emt 0:08:43]} Ng4 {[%emt 0:00:16]} 16. Qh5 {[%emt 0:00:48]} Nde3 {[%emt 0:02:54]} 17. Rae1 {[%emt 0:17:42]} Bf6 {[%emt 0:17:37]} 18. Rxe3 {[%emt 0:03:13]} Nxe3 {[%emt 0:01:09]} 19. Ng5 {[%emt 0:00:19]} Bxg5 {[%emt 0:00:31]} 20. Bxf7+ {[%emt 0:00:30]} Kg7 {[%emt 0:00:30]} 21. Qg6+ {[%emt 0:02:16]} Kh8 {[%emt 0:00:01]} 22. Rf3 {[%emt 0:00:24]} Ng4 {[%emt 0:02:47]} 23. Rh3+ {[%emt 0:00:32]} Bh4 {[%emt 0:00:05]} 24. Qh5+ {[%emt 0:11:20]} Kg7 {[%emt 0:00:02]} 25. Rxh4 {[%emt 0:02:19]} Qxh4 {[%emt 0:12:57]} 26. Qxh4 {[%emt 0:00:04]} Nf6 {[%emt 0:00:48]} 27. Be6 {[%emt 0:03:57]} Rae8 {[%emt 0:01:44]} 28. Bf5 {[%emt 0:02:58]} Re5 {[%emt 0:00:47]} 29. g4 {[%emt 0:01:21]} Rg8 {[%emt 0:00:16]} 30. Qg5+ {[%emt 0:01:45]} Kf7 {[%emt 0:00:04]} 31. Qf4 {[%emt 0:00:04]} Rge8 {[%emt 0:02:42]} 32. Qf3 {[%emt 0:01:22]} Re3 {[%emt 0:01:06]} 33. Qxb7+ {[%emt 0:00:54]} R8e7 {[%emt 0:00:03]} 34. Qa8 {[%emt 0:00:39]} Re1+ {[%emt 0:08:32]} 35. Kf2 {[%emt 0:00:13]} R1e2+ {[%emt 0:00:12]} 36. Kf3 {[%emt 0:00:21]} Rxh2 {[%emt 0:00:40]} 37. g5 {[%emt 0:00:59]} Ne8 {[%emt 0:00:54]} 38. Kg3 {[%emt 0:00:45]} Rhe2 {[%emt 0:01:18]} 39. Be4 {[%emt 0:00:20]} Kf8 {[%emt 0:03:42]} 40. g6 {[%emt 0:03:41]} Rxc2 {[%emt 0:04:38]} 41. Bc6 {[%emt 0:16:47]} Rce2 {[%emt 0:03:07]} 42. Bxe8 {[%emt 0:01:29]} Rxe8 {[%emt 0:00:04]} 43. Qf3+ {[%emt 0:04:30]} Kg7 {[%emt 0:00:03]} 44. Qf7+ {[%emt 0:00:04]} Kh6 {[%emt 0:00:05]} 45. g7 {[%emt 0:00:44]} Re1 {[%emt 0:05:20]} 46. Kf2 {[%emt 0:00:31]} R8e2+ {[%emt 0:00:26]} 47. Kf3 {[%emt 0:00:09]} Re3+ {[%emt 0:00:01]} 48. Kf4 {[%emt 0:00:10]} Re8 {[%emt 0:00:39]} 49. g8=N+ {[%emt 0:00:13]} 1-0

[Event "Italian Youth U20 Championship 2023"]
[Site "Brescia"]
[Date "2023.12.07"]
[Round "5.3"]
[White "Titze, Leo"]
[Black "Vincenti, Leonardo"]
[Result "0-1"]
[ECO "D36"]
[WhiteElo "2164"]
[BlackElo "2120"]
[Annotator "RC"]
[PlyCount "188"]
[EventDate "2023.12.03"]
[EventType "tourn"]
[EventCountry "ITA"]
[SourceTitle "playchess.com"]
[Source "ChessBase"]
[SourceQuality "1"]
[TimeControl "40/6000+30:20/3000+30:900+30"]

1. d4 {[%emt 0:00:03]} d5 {[%emt 0:00:03]} 2. c4 {[%emt 0:00:06]} e6 {[%emt 0:00:02]} 3. Nc3 {[%emt 0:00:09]} Nf6 {[%emt 0:00:02]} 4. cxd5 {[%emt 0:00:23]} exd5 {[%emt 0:00:01]} 5. Bg5 {[%emt 0:00:55]} c6 {[%emt 0:00:12]} 6. e3 {[%emt 0:00:17]} h6 {[%emt 0:00:07]} 7. Bh4 {[%emt 0:00:45]} Be7 {[%emt 0:00:04]} 8. Bd3 {[%emt 0:00:17]} O-O {[%emt 0:00:10]} 9. Qc2 {[%emt 0:01:24]} Re8 {[%emt 0:00:06]} 10. Nge2 {[%emt 0:01:19]} a5 {[%emt 0:00:04]} 11. O-O {[%emt 0:00:55]} Na6 {[%emt 0:00:03]} 12. a3 {[%emt 0:01:30]} Nc7 {[%emt 0:00:06]} 13. h3 {[%emt 0:03:55]} Ne6 {[%emt 0:00:19]} 14. Rac1 {[%emt 0:01:13]} b5 {[%emt 0:01:11]} 15. Nb1 {[%emt 0:01:45]} Bd7 {[%emt 0:00:05]} 16. Nd2 {[%emt 0:00:49]} Rc8 {[%emt 0:05:18]} 17. Nf3 {[%emt 0:02:23]} c5 {[%emt 0:12:41]} 18. dxc5 {[%emt 0:02:18]} Nxc5 {[%emt 0:00:18]} 19. Bxf6 {[%emt 0:17:49]} Bxf6 {[%emt 0:01:03]} 20. Ned4 {[%emt 0:01:53]} Qb6 {[%emt 0:07:34]} 21. Qb1 {[%emt 0:15:00]} b4 {[%emt 0:02:44]} 22. axb4 {[%emt 0:04:20]} Qxb4 {[%emt 0:01:14]} 23. Bh7+ {[%emt 0:11:01]} Kh8 {[%emt 0:01:26]} 24. Bf5 {[%emt 0:00:07]} Bxf5 {[%emt 0:02:58]} 25. Qxf5 {[%emt 0:00:35]} Qb7 {[%emt 0:15:38]} 26. b3 {[%emt 0:06:39]} Ne4 {[%emt 0:02:17]} 27. Rfd1 {[%emt 0:16:52]} g6 {[%emt 0:11:40]} 28. Qf4 {[%emt 0:00:58]} Kg7 {[%emt 0:00:08]} 29. h4 {[%emt 0:04:02]} Nc3 {[%emt 0:11:59]} 30. Re1 {[%emt 0:02:01]} Re4 {[%emt 0:00:13]} 31. Qg3 {[%emt 0:01:14]} h5 {[%emt 0:06:43]} 32. Qd6 {[%emt 0:09:08]} Be7 {[%emt 0:02:42]} 33. Qh2 {[%emt 0:00:26]} Kh7 {[%emt 0:02:12]} 34. g3 {[%emt 0:00:55]} Bf6 {[%emt 0:08:18]} 35. Kg2 {[%emt 0:00:31]} Rg4 {[%emt 0:02:12]} 36. Qg1 {[%emt 0:01:13]} Rc7 {[%emt 0:06:55]} 37. Qf1 {[%emt 0:01:31]} Qc8 {[%emt 0:01:12]} 38. Qd3 {[%emt 0:00:57]} Ne4 {[%emt 0:01:11]} 39. Rxc7 {[%emt 0:00:17]} Qxc7 {[%emt 0:00:02]} 40. Ne2 {[%emt 0:00:22]} Qd6 {[%emt 0:06:53]} 41. Nf4 {[%emt 0:08:15]} Nc5 {[%emt 0:07:13]} 42. Qxd5 {[%emt 0:05:44]} Qxd5 {[%emt 0:00:13]} 43. Nxd5 {[%emt 0:00:03]} Kg7 {[%emt 0:02:10]} 44. Nxf6 {[%emt 0:06:16]} Kxf6 {[%emt 0:00:06]} 45. Nd4 {[%emt 0:00:18]} Re4 {[%emt 0:01:42]} 46. Ra1 {[%emt 0:00:26]} Nb7 {[%emt 0:01:08]} 47. Rc1 {[%emt 0:00:33]} Re5 {[%emt 0:02:48]} 48. Rc6+ {[%emt 0:00:39]} Kg7 {[%emt 0:00:16]} 49. Ra6 {[%emt 0:02:12]} Rd5 {[%emt 0:02:03]} 50. Kf3 {[%emt 0:03:58]} Rd6 {[%emt 0:01:15]} 51. Ra8 {[%emt 0:02:55]} Rb6 {[%emt 0:00:26]} 52. Rc8 {[%emt 0:01:00]} Rb4 {[%emt 0:04:13]} 53. Rc7 {[%emt 0:00:18]} Nd6 {[%emt 0:02:18]} 54. Rd7 {[%emt 0:02:23]} Nb5 {[%emt 0:01:38]} 55. Ne6+ {[%emt 0:00:49]} Kf6 {[%emt 0:01:17]} 56. Nc5 {[%emt 0:00:57]} Nc3 {[%emt 0:00:40]} 57. Rd3 {[%emt 0:00:45]} Na2 {[%emt 0:01:11]} 58. Rd6+ {[%emt 0:02:11]} Kg7 {[%emt 0:01:16]} 59. Rd5 {[%emt 0:08:02]} Nc1 {[%emt 0:00:58]} 60. Na6 {[%emt 0:00:15]} Rb6 {[%emt 0:01:53]} 61. Rxa5 {[%emt 0:15:03]} Nxb3 {[%emt 0:15:10]} 62. Ra2 {[%emt 0:00:39]} Rf6+ {[%emt 0:00:36]} 63. Kg2 {[%emt 0:00:12]} Nc1 {[%emt 0:00:33]} 64. Ra5 {[%emt 0:01:47]} Nd3 {[%emt 0:01:28]} 65. f4 {[%emt 0:00:12]} Re6 {[%emt 0:00:33]} 66. Kf3 {[%emt 0:01:28]} Ne1+ {[%emt 0:00:13]} 67. Kf2 {[%emt 0:00:16]} Nc2 {[%emt 0:00:21]} 68. Nc7 {[%emt 0:00:17]} Re7 {[%emt 0:04:13]} 69. Nd5 {[%emt 0:00:16]} Rb7 {[%emt 0:00:19]} 70. Nc3 {[%emt 0:09:26]} Rb3 {[%emt 0:02:58]} 71. Rc5 {[%emt 0:01:25]} Rb2 {[%emt 0:00:24]} 72. Ne2 {[%emt 0:00:32]} Nb4 {[%emt 0:00:42]} 73. Rc3 {[%emt 0:00:12]} Rd2 {[%emt 0:01:32]} 74. e4 {[%emt 0:00:12]} Rc2 {[%emt 0:02:07]} 75. Rb3 {[%emt 0:00:46]} Na2 {[%emt 0:00:32]} 76. Kf3 {[%emt 0:02:28]} Rxe2 {[%emt 0:00:06]} 77. f5 {[%emt 0:01:25]} Rc2 {[%emt 0:02:30]} 78. Rb6 {[%emt 0:00:33]} Rc3+ {[%emt 0:08:22]} 79. Kf4 {[%emt 0:00:22]} Nc1 {[%emt 0:06:45]} 80. fxg6 {[%emt 0:00:00]} Ne2+ {[%emt 0:00:00]} 81. Ke5 {[%emt 0:00:00]} fxg6 {[%emt 0:00:00]} 82. Rb7+ {[%emt 0:00:00]} Kh6 {[%emt 0:00:00]} 83. Kf6 {[%emt 0:00:00]} Rf3+ {[%emt 0:00:00]} 84. Ke6 {[%emt 0:00:00]} Nxg3 {[%emt 0:00:00]} 85. e5 {[%emt 0:00:00]} Nf5 {[%emt 0:00:00]} 86. Rb4 {[%emt 0:00:00]} g5 {[%emt 0:00:00]} 87. hxg5+ {[%emt 0:00:00]} Kxg5 {[%emt 0:00:00]} 88. Rb8 {[%emt 0:00:00]} Ng7+ {[%emt 0:00:00]} 89. Kd5 {[%emt 0:00:00]} h4 {[%emt 0:00:00]} 90. Rg8 {[%emt 0:00:00]} Kg6 {[%emt 0:00:00]} 91. Rh8 {[%emt 0:00:00]} h3 {[%emt 0:00:00]} 92. Ke4 {[%emt 0:00:00]} Ra3 {[%emt 0:00:00]} 93. Rf8 {[%emt 0:00:00]} h2 {[%emt 0:00:00]} 94. Rf1 {[%emt 0:00:00]} Nh5 {[%emt 0:00:00]} 0-1

[Event "Italian Youth U20 Championship 2023"]
[Site "Brescia"]
[Date "2023.12.07"]
[Round "5.4"]
[White "Pegno, Mattia"]
[Black "Bin-Suhayl, Ieysaa"]
[Result "0-1"]
[ECO "D61"]
[WhiteElo "2155"]
[BlackElo "2248"]
[Annotator "RC"]
[PlyCount "104"]
[EventDate "2023.12.03"]
[EventType "tourn"]
[EventCountry "ITA"]
[SourceTitle "playchess.com"]
[Source "ChessBase"]
[SourceQuality "1"]
[TimeControl "40/6000+30:20/3000+30:900+30"]

1. d4 {[%emt 0:00:03]} d5 {[%emt 0:03:54]} 2. c4 {[%emt 0:00:10]} e6 {[%emt 0:00:13]} 3. Nf3 {[%emt 0:00:09]} Nf6 {[%emt 0:00:18]} 4. Bg5 {[%emt 0:01:08]} c6 {[%emt 0:02:04]} 5. e3 {[%emt 0:00:47]} Nbd7 {[%emt 0:02:02]} 6. Qc2 {[%emt 0:23:06]} Be7 {[%emt 0:17:39]} 7. Nc3 {[%emt 0:00:32]} O-O {[%emt 0:00:12]} 8. O-O-O {[%emt 0:00:29]} dxc4 {[%emt 0:03:07]} 9. Bxc4 {[%emt 0:03:58]} b5 {[%emt 0:00:06]} 10. Bd3 {[%emt 0:02:57]} Bb7 {[%emt 0:04:14]} 11. Ne5 {[%emt 0:08:45]} h6 {[%emt 0:02:01]} 12. Bxf6 {[%emt 0:29:46]} Nxf6 {[%emt 0:03:05]} 13. Ne4 {[%emt 0:04:09]} Qd5 {[%emt 0:18:56]} 14. Kb1 {[%emt 0:03:09]} c5 {[%emt 0:03:01]} 15. Nxc5 {[%emt 0:13:20]} Rfc8 {[%emt 0:00:50]} 16. f4 {[%emt 0:10:12]} Bxc5 {[%emt 0:00:49]} 17. dxc5 {[%emt 0:00:09]} Rxc5 {[%emt 0:01:20]} 18. Qe2 {[%emt 0:02:48]} Qxg2 {[%emt 0:00:39]} 19. Qxg2 {[%emt 0:02:01]} Bxg2 {[%emt 0:00:06]} 20. Rhg1 {[%emt 0:00:06]} Bd5 {[%emt 0:03:04]} 21. b4 {[%emt 0:01:49]} Rc7 {[%emt 0:09:16]} 22. Rc1 {[%emt 0:00:32]} Rac8 {[%emt 0:00:14]} 23. Rxc7 {[%emt 0:00:59]} Rxc7 {[%emt 0:00:07]} 24. Kb2 {[%emt 0:00:30]} a6 {[%emt 0:00:56]} 25. a4 {[%emt 0:00:38]} Be4 {[%emt 0:04:29]} 26. Bxe4 {[%emt 0:00:42]} Nxe4 {[%emt 0:00:05]} 27. axb5 {[%emt 0:00:30]} axb5 {[%emt 0:00:56]} 28. Ra1 {[%emt 0:00:33]} Nd6 {[%emt 0:11:02]} 29. Ra8+ {[%emt 0:00:29]} Kh7 {[%emt 0:00:12]} 30. Rd8 {[%emt 0:00:30]} Nc4+ {[%emt 0:00:57]} 31. Nxc4 {[%emt 0:00:14]} Rxc4 {[%emt 0:00:04]} 32. Kb3 {[%emt 0:00:48]} Re4 {[%emt 0:00:15]} 33. Rd3 {[%emt 0:00:22]} Kg6 {[%emt 0:01:04]} 34. Kc3 {[%emt 0:00:23]} Rc4+ {[%emt 0:02:10]} 35. Kb3 {[%emt 0:00:05]} Kf6 {[%emt 0:00:10]} 36. h4 {[%emt 0:01:08]} Re4 {[%emt 0:00:41]} 37. Kc3 {[%emt 0:00:25]} Rc4+ {[%emt 0:10:37]} 38. Kb3 {[%emt 0:00:08]} Kg6 {[%emt 0:00:02]} 39. Rd1 {[%emt 0:00:58]} Re4 {[%emt 0:00:03]} 40. Rg1+ {[%emt 0:00:20]} Kf6 {[%emt 0:00:26]} 41. Rg3 {[%emt 0:03:17]} g6 {[%emt 0:00:30]} 42. h5 {[%emt 0:15:14]} g5 {[%emt 0:07:14]} 43. fxg5+ {[%emt 0:13:20]} hxg5 {[%emt 0:00:10]} 44. h6 {[%emt 0:02:18]} Kg6 {[%emt 0:00:16]} 45. h7 {[%emt 0:01:59]} Rh4 {[%emt 0:00:25]} 46. Kc3 {[%emt 0:00:34]} f6 {[%emt 0:00:16]} 47. Kd3 {[%emt 0:05:50]} Rxh7 {[%emt 0:00:41]} 48. Rg1 {[%emt 0:01:20]} Rd7+ {[%emt 0:00:39]} 49. Ke2 {[%emt 0:01:23]} Rc7 {[%emt 0:00:20]} 50. Rg4 {[%emt 0:00:10]} Kf5 {[%emt 0:00:13]} 51. Rd4 {[%emt 0:00:08]} Rc4 {[%emt 0:00:52]} 52. e4+ {[%emt 0:02:09]} Ke5 {[%emt 0:00:11]} 0-1

[Event "Italian Youth U20 Championship 2023"]
[Site "Brescia"]
[Date "2023.12.08"]
[Round "6.1"]
[White "Pozzari, Simone"]
[Black "Bin-Suhayl, Ieysaa"]
[Result "1-0"]
[ECO "D90"]
[WhiteElo "2186"]
[BlackElo "2248"]
[Annotator "RC"]
[PlyCount "35"]
[EventDate "2023.12.03"]
[EventType "tourn"]
[EventCountry "ITA"]
[SourceTitle "playchess.com"]
[Source "ChessBase"]
[SourceQuality "1"]
[TimeControl "40/6000+30:20/3000+30:900+30"]

1. d4 {[%emt 0:02:02]} d5 {[%emt 0:00:15]} 2. c4 {[%emt 0:00:05]} c6 {[%emt 0:00:07]} 3. Nc3 {[%emt 0:00:41]} Nf6 {[%emt 0:00:06]} 4. Nf3 {[%emt 0:04:27]} g6 {[%emt 0:05:38]} 5. cxd5 {[%emt 0:03:50]} cxd5 {[%emt 0:00:20]} 6. Bf4 {[%emt 0:00:05]} Nc6 {[%emt 0:28:39]} 7. e3 {[%emt 0:01:25]} Bf5 {[%emt 0:03:17]} 8. Qb3 {[%emt 0:06:14]} Qb6 {[%emt 0:08:55]} 9. Qxb6 {[%emt 0:03:18]} axb6 {[%emt 0:00:04]} 10. Bb5 {[%emt 0:07:37]} e6 {[%emt 0:19:56]} 11. Ne5 {[%emt 0:03:09]} Nd7 {[%emt 0:01:58]} 12. Nxc6 {[%emt 0:02:02]} bxc6 {[%emt 0:00:12]} 13. Bxc6 {[%emt 0:00:04]} Rc8 {[%emt 0:00:24]} 14. Bb7 {[%emt 0:04:42]} Rc4 {[%emt 0:01:07]} 15. Ba6 {[%emt 0:01:36]} Rc6 {[%emt 0:00:59]} 16. Bb5 {[%emt 0:00:19]} Rc8 {[%emt 0:00:03]} 17. O-O {[%emt 0:11:54]} Ba3 {[%emt 0:03:10]} 18. Na4 {[%emt 0:01:01]} 1-0

[Event "Italian Youth U20 Championship 2023"]
[Site "Brescia"]
[Date "2023.12.08"]
[Round "6.2"]
[White "Vincenti, Leonardo"]
[Black "Pegno, Mattia"]
[Result "1/2-1/2"]
[ECO "B47"]
[WhiteElo "2120"]
[BlackElo "2155"]
[Annotator "RC"]
[PlyCount "120"]
[EventDate "2023.12.03"]
[EventType "tourn"]
[EventCountry "ITA"]
[SourceTitle "playchess.com"]
[Source "ChessBase"]
[SourceQuality "1"]
[TimeControl "40/6000+30:20/3000+30:900+30"]

1. e4 {[%emt 0:00:02]} c5 {[%emt 0:01:50]} 2. Nf3 {[%emt 0:00:15]} e6 {[%emt 0:00:16]} 3. d4 {[%emt 0:00:19]} cxd4 {[%emt 0:00:08]} 4. Nxd4 {[%emt 0:00:06]} Nc6 {[%emt 0:00:15]} 5. Nc3 {[%emt 0:00:31]} Qc7 {[%emt 0:00:31]} 6. g3 {[%emt 0:00:12]} a6 {[%emt 0:03:12]} 7. Bg2 {[%emt 0:00:07]} b5 {[%emt 0:05:57]} 8. a3 {[%emt 0:03:33]} Bb7 {[%emt 0:03:20]} 9. Be3 {[%emt 0:01:41]} Nf6 {[%emt 0:04:22]} 10. Nxc6 {[%emt 0:03:27]} Qxc6 {[%emt 0:14:28]} 11. O-O {[%emt 0:02:08]} Bc5 {[%emt 0:05:25]} 12. Bd4 {[%emt 0:10:29]} d6 {[%emt 0:14:59]} 13. Re1 {[%emt 0:02:40]} e5 {[%emt 0:02:29]} 14. Be3 {[%emt 0:03:15]} Qb6 {[%emt 0:08:53]} 15. Qd2 {[%emt 0:12:11]} O-O {[%emt 0:02:52]} 16. Rad1 {[%emt 0:02:44]} Rfd8 {[%emt 0:02:10]} 17. h3 {[%emt 0:12:27]} h6 {[%emt 0:02:54]} 18. Qd3 {[%emt 0:11:08]} Rac8 {[%emt 0:01:33]} 19. Rd2 {[%emt 0:06:25]} Rc7 {[%emt 0:06:45]} 20. Bxc5 {[%emt 0:02:08]} Qxc5 {[%emt 0:00:58]} 21. Qe3 {[%emt 0:02:38]} Kf8 {[%emt 0:02:43]} 22. Qxc5 {[%emt 0:03:44]} Rxc5 {[%emt 0:00:08]} 23. Red1 {[%emt 0:00:03]} Ke7 {[%emt 0:00:14]} 24. f3 {[%emt 0:04:32]} g5 {[%emt 0:07:33]} 25. Kf2 {[%emt 0:01:59]} Ne8 {[%emt 0:00:56]} 26. Rh1 {[%emt 0:00:58]} Nc7 {[%emt 0:02:28]} 27. h4 {[%emt 0:00:34]} Ne6 {[%emt 0:00:11]} 28. hxg5 {[%emt 0:00:20]} hxg5 {[%emt 0:00:07]} 29. Rh5 {[%emt 0:07:10]} Kf6 {[%emt 0:02:48]} 30. Nd1 {[%emt 0:03:42]} d5 {[%emt 0:07:46]} 31. Ne3 {[%emt 0:03:12]} Kg6 {[%emt 0:06:35]} 32. Rh1 {[%emt 0:01:20]} dxe4 {[%emt 0:00:38]} 33. Rxd8 {[%emt 0:00:15]} Nxd8 {[%emt 0:00:06]} 34. fxe4 {[%emt 0:00:24]} f6 {[%emt 0:01:05]} 35. c3 {[%emt 0:00:51]} Nf7 {[%emt 0:00:37]} 36. Nf5 {[%emt 0:01:23]} Rc7 {[%emt 0:00:40]} 37. Ke3 {[%emt 0:01:10]} g4 {[%emt 0:00:34]} 38. Rh4 {[%emt 0:00:38]} Ng5 {[%emt 0:00:28]} 39. Rxg4 {[%emt 0:01:06]} Bc8 {[%emt 0:00:27]} 40. Bh3 {[%emt 0:02:07]} Rh7 {[%emt 0:00:34]} 41. Bg2 {[%emt 0:08:48]} Rh2 {[%emt 0:21:16]} 42. Kf2 {[%emt 0:03:07]} Bxf5 {[%emt 0:01:06]} 43. exf5+ {[%emt 0:00:02]} Kxf5 {[%emt 0:00:46]} 44. Rb4 {[%emt 0:01:46]} e4 {[%emt 0:05:39]} 45. Kg1 {[%emt 0:01:25]} Rh8 {[%emt 0:03:53]} 46. Kf2 {[%emt 0:01:28]} Rh2 {[%emt 0:11:18]} 47. Kg1 {[%emt 0:00:01]} Rh8 {[%emt 0:00:17]} 48. Kf2 {[%emt 0:00:01]} Re8 {[%emt 0:02:49]} 49. a4 {[%emt 0:01:16]} Re5 {[%emt 0:02:09]} 50. axb5 {[%emt 0:00:42]} axb5 {[%emt 0:00:28]} 51. Bf1 {[%emt 0:02:00]} e3+ {[%emt 0:01:01]} 52. Ke2 {[%emt 0:00:02]} Ne4 {[%emt 0:01:04]} 53. Kxe3 {[%emt 0:01:03]} Nxg3+ {[%emt 0:02:52]} 54. Kf2 {[%emt 0:00:07]} Nxf1 {[%emt 0:01:41]} 55. Kxf1 {[%emt 0:00:03]} Kg5 {[%emt 0:00:16]} 56. c4 {[%emt 0:00:05]} bxc4 {[%emt 0:00:30]} 57. Rxc4 {[%emt 0:00:02]} f5 {[%emt 0:00:32]} 58. b4 {[%emt 0:00:36]} Re3 {[%emt 0:00:09]} 59. Kf2 {[%emt 0:00:32]} Rb3 {[%emt 0:00:04]} 60. Kg2 {[%emt 0:01:02]} f4 {[%emt 0:01:55]} 1/2-1/2